bitfinex/quotes_BTCUSD_20251202
["timestamp","ask_amount","ask_price","bid_price","bid_amount"]
[1764713270162,0.849448,91781.0,91780.0,0.0004]
[1764713270361,0.73974294,91781.0,91780.0,0.0004]
[1764713270594,0.73974294,91781.0,91750.0,0.0004]
[1764713270595,0.02181361,91755.0,91750.0,0.0004]
[1764713270857,0.0843366,91755.0,91750.0,0.0004]
[1764713271233,0.0843366,91755.0,91754.0,0.0284]
[1764713271506,0.0843366,91755.0,91749.0,0.03579]
[1764713271507,0.02181361,91750.0,91749.0,0.03579]
[1764713271937,0.02181361,91750.0,91749.0,0.0284]
[1764713272138,0.02181361,91750.0,91749.0,0.26976602]
[1764713272365,0.02181361,91750.0,91749.0,0.05178]
[1764713272561,0.02181361,91750.0,91749.0,0.26976602]
[1764713272791,0.02181361,91750.0,91749.0,0.2701547]
[1764713273491,0.02181361,91750.0,91749.0,0.05216868]
[1764713273693,0.02181361,91750.0,91749.0,0.05416868]
[1764713277252,0.21792079,91777.0,91761.0,0.01089787]
[1764713277460,0.02181361,91762.0,91761.0,0.01089787]
[1764713277678,0.02181361,91762.0,91756.0,0.01089846]
[1764713277679,0.00906,91762.0,91749.0,0.00238868]
[1764713277883,0.31138025,91750.0,91749.0,0.00238868]
[1764713278031,0.33768025,91750.0,91749.0,0.00238868]
[1764713278238,0.33772025,91750.0,91749.0,0.00238868]
[1764713278674,0.64344025,91750.0,91749.0,0.00238868]
[1764713278901,0.66536596,91750.0,91749.0,0.00238868]
[1764713279274,0.66536596,91750.0,91749.0,0.00038868]
[1764713282832,0.67616596,91750.0,91749.0,0.00038868]
[1764713284523,0.67616596,91750.0,91730.0,0.0004]
[1764713284524,0.3023654,91731.0,91730.0,0.0004]
[1764713284696,0.3580954,91731.0,91730.0,0.00048493]
[1764713284941,0.6810954,91731.0,91730.0,0.00048493]
[1764713286255,0.6810954,91731.0,91700.0,0.01130512]
[1764713286256,0.0843366,91701.0,91700.0,0.0004]
[1764713286453,0.1267166,91701.0,91700.0,0.0007882]
[1764713286720,0.4875566,91701.0,91700.0,0.0007882]
[1764713286939,0.4875566,91701.0,91664.0,0.02181881]
[1764713286940,0.02181361,91667.0,91665.0,0.01090928]
[1764713287163,0.02181361,91666.0,91665.0,0.0110247]
[1764713287388,0.03827596,91666.0,91665.0,0.00011542]
[1764713287588,0.03827596,91666.0,91665.0,0.2441812]
[1764713288230,0.03827596,91666.0,91665.0,0.00011542]
[1764713288658,0.07898534,91666.0,91665.0,0.00011542]
[1764713288905,0.12589895,91666.0,91665.0,0.00011542]
[1764713289020,0.12589895,91666.0,91665.0,0.00111542]
[1764713289255,0.16373895,91666.0,91665.0,0.00111542]
[1764713290199,0.48673895,91666.0,91665.0,0.00111542]
[1764713290406,0.48773895,91666.0,91665.0,0.00011542]
[1764713290601,0.48773895,91666.0,91665.0,0.00241676]
[1764713291016,0.70492235,91666.0,91665.0,0.00241676]
[1764713291268,0.70592235,91666.0,91665.0,0.00241676]
[1764713291682,0.50701895,91666.0,91665.0,0.00241676]
[1764713291892,0.50701895,91666.0,91665.0,0.02829676]
[1764713291893,0.02481361,91666.0,91665.0,0.02829676]
[1764713292112,0.001,91666.0,91665.0,0.06799676]
[1764713292327,0.003,91666.0,91665.0,0.06799676]
[1764713292746,0.002,91666.0,91665.0,0.06799676]
[1764713293204,0.02181361,91669.0,91666.0,0.22909257]
[1764713293447,0.02181361,91669.0,91668.0,0.24405864]
[1764713294368,0.02083702,91684.0,91668.0,0.24405864]
[1764713294369,0.02181361,91671.0,91670.0,0.2181717]
[1764713294569,0.02181361,91671.0,91670.0,0.22908039]
[1764713295528,0.02181361,91671.0,91670.0,0.25496039]
[1764713295946,0.02181361,91671.0,91670.0,0.29466039]
[1764713296574,0.02181361,91687.0,91686.0,0.01090679]
[1764713296791,0.02181361,91687.0,91681.0,0.01090738]
[1764713296792,0.04874595,91693.0,91681.0,0.01090738]
[1764713297001,0.02181361,91674.0,91673.0,0.01090833]
[1764713297204,0.03827596,91674.0,91673.0,0.22907507]
[1764713297447,0.02181361,91682.0,91681.0,0.2181477]
[1764713297638,0.02181361,91693.0,91692.0,0.21812132]
[1764713298055,0.01646235,91694.0,91692.0,0.21812132]
[1764713298056,0.01646235,91694.0,91692.0,0.28370132]
[1764713298262,0.01646235,91694.0,91693.0,0.06558]
[1764713298721,0.0843366,91700.0,91699.0,0.22900985]
[1764713299347,0.0843366,91700.0,91699.0,0.22912527]
[1764713300813,0.02181361,91700.0,91699.0,0.22912527]
[1764713301782,0.02181361,91700.0,91693.0,0.01090595]
[1764713301783,0.06252299,91699.0,91651.0,0.2534]
[1764713301990,0.06252299,91675.0,91664.0,0.0109094]
[1764713302196,0.06252299,91675.0,91660.0,0.01090988]
[1764713302197,0.02181361,91661.0,91660.0,0.01090988]
[1764713302418,0.01378,91666.0,91658.0,0.01091012]
[1764713302621,0.01378,91666.0,91654.0,0.01091059]
[1764713302622,0.06252299,91661.0,91654.0,0.01091059]
[1764713302825,0.06252299,91661.0,91645.0,0.01091167]
[1764713302826,0.0843366,91652.0,91645.0,0.01091167]
[1764713303034,0.0843366,91652.0,91650.0,0.21861951]
[1764713303344,0.0843366,91652.0,91650.0,0.0004]
[1764713303544,0.0843366,91652.0,91650.0,0.21862045]
[1764713304396,0.38281333,91652.0,91650.0,0.0004]
[1764713304802,0.38281333,91652.0,91651.0,0.25722531]
[1764713305038,0.02181361,91652.0,91651.0,0.25722531]
[1764713305220,0.02181361,91652.0,91651.0,0.25622531]
[1764713305634,0.02181361,91652.0,91651.0,0.25722531]
[1764713305838,0.02181361,91652.0,91651.0,0.25622531]
[1764713306427,0.02181361,91655.0,91652.0,0.01091083]
[1764713306628,0.02181361,91655.0,91651.0,0.26442667]
[1764713306835,0.0843366,91655.0,91654.0,0.0026221]
[1764713307222,0.1094366,91655.0,91654.0,0.0026221]
[1764713307420,0.44846299,91655.0,91654.0,0.0026221]
[1764713307643,0.1094366,91655.0,91654.0,0.0026221]
[1764713308191,0.1104366,91655.0,91654.0,0.0026221]
[1764713308392,0.1114366,91655.0,91654.0,0.0026221]
[1764713308587,0.1482766,91655.0,91654.0,0.0026221]
[1764713308744,0.1472766,91655.0,91654.0,0.0026221]
[1764713309150,0.1646366,91655.0,91654.0,0.0026221]
[1764713310012,0.51099506,91655.0,91654.0,0.0026221]
[1764713310339,0.54017183,91655.0,91654.0,0.0026221]
[1764713310765,0.51199506,91655.0,91654.0,0.0026221]
[1764713311576,0.0843366,91631.0,91623.0,0.21828465]
[1764713311719,0.08762299,91631.0,91630.0,0.00051586]
[1764713311924,0.0843366,91631.0,91630.0,0.00051586]
[1764713313828,0.0843366,91631.0,91630.0,0.00251586]
[1764713314910,0.0843366,91631.0,91630.0,0.02872586]
[1764713315190,0.0843366,91631.0,91630.0,0.00051586]
[1764713315363,0.0843366,91631.0,91630.0,0.00151586]
[1764713317314,0.32815334,91631.0,91630.0,0.00121561]
[1764713317496,0.33015334,91631.0,91630.0,0.00121561]
[1764713317907,0.36619334,91631.0,91630.0,0.00121561]
[1764713318109,0.03559361,91620.0,91619.0,0.01091476]
[1764713318309,0.03933,91620.0,91614.0,0.01091536]
[1764713318509,0.02181361,91615.0,91614.0,0.01103127]
[1764713318717,0.01646235,91618.0,91617.0,0.21830009]
[1764713318916,0.01378,91620.0,91617.0,0.21830009]
[1764713319304,0.0843366,91620.0,91619.0,0.21829533]
[1764713319805,0.02181361,91619.0,91618.0,0.21829771]
[1764713320184,0.02181361,91619.0,91618.0,0.21864768]
[1764713321005,0.06252299,91620.0,91618.0,0.21864768]
[1764713321207,0.06252299,91620.0,91619.0,0.21829533]
[1764713321822,0.0843366,91620.0,91619.0,0.21829533]
[1764713322788,0.0843366,91619.0,91616.0,0.01091512]
[1764713323021,0.02181361,91616.0,91615.0,0.22921537]
[1764713323186,0.02555,91616.0,91615.0,0.22921537]
[1764713323395,0.04736361,91616.0,91615.0,0.22921537]
[1764713323774,0.02181361,91616.0,91615.0,0.22921537]
[1764713324254,0.02181361,91616.0,91615.0,0.23021537]
[1764713324412,0.02181361,91616.0,91615.0,0.22921537]
[1764713324811,0.02181361,91616.0,91615.0,0.23021537]
[1764713325785,0.08807299,91616.0,91615.0,0.23021537]
[1764713325927,0.1479266,91616.0,91615.0,0.001]
[1764713327044,0.0843366,91615.0,91614.0,0.00011591]
[1764713327277,0.1098866,91615.0,91614.0,0.00011591]
[1764713327478,0.1098866,91615.0,91614.0,0.2188898]
[1764713327690,0.1479266,91615.0,91614.0,0.00058256]
[1764713327856,0.36623146,91615.0,91614.0,0.00058256]
[1764713329462,0.38965781,91615.0,91614.0,0.00058256]
[1764713330219,0.17335295,91615.0,91614.0,0.00058256]
[1764713330417,0.1108866,91615.0,91614.0,0.2188898]
[1764713330819,0.1118866,91615.0,91614.0,0.00058256]
[1764713331228,0.35361781,91615.0,91614.0,0.00058256]
[1764713331440,0.17335295,91615.0,91614.0,0.00058256]
[1764713331979,0.39165781,91615.0,91614.0,0.00058256]
[1764713332134,0.39065781,91615.0,91614.0,0.00058256]
[1764713332321,0.3688442,91615.0,91614.0,0.00058256]
[1764713332521,0.38965781,91615.0,91614.0,0.00058256]
[1764713332727,0.4188653,91615.0,91614.0,0.00058256]
[1764713333191,0.20056044,91615.0,91614.0,0.00058256]
[1764713333383,0.4208653,91615.0,91614.0,0.00058256]
[1764713333693,0.4188653,91615.0,91614.0,0.00058256]
[1764713333891,0.20056044,91615.0,91614.0,0.00058256]
[1764713334031,0.13431295,91615.0,91614.0,0.00058256]
[1764713334230,0.13531295,91615.0,91614.0,0.2188898]
[1764713334532,0.10976295,91615.0,91614.0,0.2188898]
[1764713334738,0.0863366,91615.0,91614.0,0.2188898]
[1764713334971,0.10976295,91615.0,91614.0,0.2188898]
[1764713335304,0.0853366,91615.0,91614.0,0.2188898]
[1764713335512,0.0843366,91615.0,91614.0,0.2188898]
[1764713335756,0.02181361,91616.0,91615.0,0.2292201]
[1764713335922,0.02181361,91616.0,91615.0,0.2541901]
[1764713336142,0.02181361,91616.0,91615.0,0.2943701]
[1764713337730,0.02181361,91616.0,91615.0,0.2541901]
[1764713338154,0.02181361,91616.0,91615.0,0.2943701]
[1764713339307,0.02181361,91616.0,91615.0,0.2953701]
[1764713340568,0.02181361,91616.0,91615.0,0.2551901]
[1764713340962,0.01646235,91618.0,91617.0,0.21830009]
[1764713341153,0.05205596,91618.0,91617.0,0.21830009]
[1764713341583,0.05205596,91618.0,91617.0,0.21867923]
[1764713341960,0.01646235,91618.0,91617.0,0.24364923]
[1764713342170,0.06252299,91620.0,91619.0,0.21829533]
[1764713342345,0.0510211,91627.0,91626.0,0.21827865]
[1764713342482,0.02181361,91627.0,91626.0,0.28342865]
[1764713343108,0.0843366,91639.0,91638.0,0.0109125]
[1764713343309,0.0843366,91639.0,91638.0,0.22916208]
[1764713343516,0.0843366,91639.0,91635.0,0.22917007]
[1764713343517,0.02181361,91634.0,91633.0,0.22917402]
[1764713343695,0.02181361,91634.0,91630.0,0.01091345]
[1764713343696,0.02181361,91633.0,91632.0,0.22917524]
[1764713343898,0.03827596,91633.0,91632.0,0.22917524]
[1764713344460,0.10079895,91633.0,91632.0,0.22917524]
[1764713344666,0.02181361,91626.0,91622.0,0.22920254]
[1764713344802,0.02181361,91626.0,91625.0,0.23754103]
[1764713345001,0.02181361,91626.0,91625.0,0.26251103]
[1764713345740,0.0843366,91625.0,91624.0,0.2291971]
[1764713346138,0.02181361,91623.0,91620.0,0.01091464]
[1764713346341,0.02181361,91621.0,91620.0,0.22920758]
[1764713346518,0.02181361,91623.0,91622.0,0.0109144]
[1764713346749,0.02181361,91623.0,91622.0,0.22919784]
[1764713347151,0.10786358,91629.0,91628.0,0.21827389]
[1764713347354,0.06252299,91626.0,91620.0,0.22920282]
[1764713347565,0.0843366,91624.0,91623.0,0.22919774]
[1764713348322,0.06252299,91623.0,91621.0,0.01091452]
[1764713348526,0.0843366,91621.0,91620.0,0.22920733]
[1764713348752,0.02181361,91619.0,91618.0,0.22921187]
[1764713348942,0.06252299,91622.0,91620.0,0.21829123]
[1764713349167,0.30264146,91615.0,91614.0,0.00011591]
[1764713349366,0.36861333,91615.0,91614.0,0.00011591]
[1764713349560,0.40515333,91615.0,91614.0,0.00011591]
[1764713350309,0.40615333,91615.0,91614.0,0.00011591]
[1764713351176,0.72915333,91615.0,91614.0,0.00011591]
[1764713351382,0.75857195,91615.0,91614.0,0.00011591]
[1764713351592,0.75957195,91615.0,91614.0,0.00011591]
[1764713351880,0.76952584,91615.0,91614.0,0.00011591]
[1764713352196,0.76912633,91615.0,91614.0,0.00011591]
[1764713352624,0.74731272,91615.0,91614.0,0.00011591]
[1764713352908,0.76912633,91615.0,91614.0,0.00011591]
[1764713353316,0.72975382,91615.0,91614.0,0.00011591]
[1764713353726,0.72975382,91615.0,91610.0,0.0004]
[1764713353727,0.563128,91611.0,91610.0,0.0004]
[1764713353932,0.67144106,91611.0,91610.0,0.00051593]
[1764713354141,0.71170051,91611.0,91610.0,0.00109926]
[1764713354937,0.71470051,91611.0,91610.0,0.00109926]
[1764713355137,0.71170051,91611.0,91610.0,0.00109926]
[1764713355565,0.82740557,91611.0,91610.0,0.00109926]
[1764713355785,0.82740557,91611.0,91577.0,0.21839324]
[1764713355786,0.06252299,91580.0,91578.0,0.01091965]
[1764713355965,0.10079895,91579.0,91578.0,0.01130724]
[1764713356320,0.12677895,91579.0,91578.0,0.01130724]
[1764713356541,0.16331895,91579.0,91578.0,0.01130724]
[1764713357021,0.12677895,91579.0,91578.0,0.01130724]
[1764713357957,0.12677895,91579.0,91578.0,0.01230724]
[1764713358758,0.06252299,91579.0,91578.0,0.01230724]
[1764713358998,0.0843366,91579.0,91578.0,0.01230724]
[1764713359203,0.06252299,91579.0,91578.0,0.01230724]
[1764713359421,0.08850299,91579.0,91578.0,0.01230724]
[1764713359640,0.1468566,91579.0,91578.0,0.01230724]
[1764713359772,0.1103166,91579.0,91578.0,0.01230724]
[1764713359960,0.08850299,91579.0,91578.0,0.01230724]
[1764713360161,0.1103166,91579.0,91578.0,0.01230724]
[1764713360720,0.06252299,91579.0,91578.0,0.07350724]
[1764713361014,0.0843366,91579.0,91578.0,0.03629724]
[1764713361786,0.0843366,91579.0,91578.0,0.25562406]
[1764713362440,0.0843366,91579.0,91578.0,0.40202406]
[1764713363202,0.0843366,91579.0,91578.0,0.37803406]
[1764713363794,0.1103166,91579.0,91578.0,0.37803406]
[1764713365054,0.1468566,91579.0,91578.0,0.37803406]
[1764713365611,0.1103166,91579.0,91578.0,0.37803406]
[1764713366365,0.06252299,91579.0,91578.0,0.37803406]
[1764713367170,0.0843366,91579.0,91578.0,0.37803406]
[1764713367529,0.03654,91606.0,91595.0,0.21835253]
[1764713367737,0.03382361,91608.0,91607.0,0.21832392]
[1764713368331,0.02181361,91608.0,91607.0,0.21832392]
[1764713368940,0.02181361,91608.0,91607.0,0.21843992]
[1764713369407,0.0981166,91618.0,91617.0,0.21830009]
[1764713369610,0.03559361,91618.0,91617.0,0.21830009]
[1764713369743,0.1606366,91618.0,91617.0,0.21830009]
[1764713370604,0.03976,91618.0,91617.0,0.21830009]
[1764713370805,0.06157361,91618.0,91617.0,0.21830009]
[1764713371041,0.06157361,91618.0,91616.0,0.21830198]
[1764713371042,0.0843366,91617.0,91616.0,0.21830198]
[1764713371257,0.1103166,91617.0,91616.0,0.21830198]
[1764713374250,0.1103166,91617.0,91616.0,0.36470198]
[1764713375090,0.12192299,91617.0,91616.0,0.1464]
[1764713375297,0.36203669,91617.0,91616.0,0.1464]
[1764713376110,0.1437366,91617.0,91616.0,0.1464]
[1764713376310,0.23559888,91626.0,91616.0,0.1464]
[1764713376311,0.02181361,91628.0,91627.0,0.01091381]
[1764713376514,0.02181361,91628.0,91627.0,0.37559008]
[1764713376719,0.0843366,91628.0,91627.0,0.37559008]
[1764713376999,0.1067266,91628.0,91627.0,0.37559008]
[1764713377366,0.1067266,91628.0,91627.0,0.1464]
[1764713377578,0.35786049,91628.0,91627.0,0.1464]
[1764713377767,0.1395866,91628.0,91627.0,0.1464]
[1764713377970,0.1395866,91628.0,91627.0,0.36467627]
[1764713378521,0.1395866,91628.0,91627.0,0.1464]
[1764713379553,0.1395866,91628.0,91627.0,0.36467627]
[1764713379768,0.1067266,91628.0,91627.0,0.36467627]
[1764713379966,0.1067266,91628.0,91627.0,0.1464]
[1764713380175,0.1395866,91628.0,91627.0,0.1464]
[1764713381918,0.1395866,91628.0,91627.0,0.36467627]
[1764713382859,0.1395866,91628.0,91627.0,0.1464]
[1764713383597,0.35786049,91628.0,91627.0,0.1464]
[1764713383807,0.1067266,91628.0,91627.0,0.36467627]
[1764713384330,0.02181361,91628.0,91627.0,0.39998008]
[1764713384459,0.02181361,91628.0,91627.0,0.43656008]
[1764713384665,0.02181361,91628.0,91627.0,0.39998008]
[1764713385066,0.02181361,91628.0,91627.0,0.37559008]
[1764713385274,0.07898534,91633.0,91632.0,0.21826436]
[1764713385461,0.10079895,91633.0,91632.0,0.21826436]
[1764713385967,0.10079895,91633.0,91632.0,0.36466436]
[1764713386371,0.10179895,91633.0,91632.0,0.36466436]
[1764713386571,0.10279895,91633.0,91632.0,0.36466436]
[1764713391317,0.10279895,91633.0,91632.0,0.35966436]
[1764713391901,0.08098534,91633.0,91632.0,0.35966436]
[1764713394355,0.10279895,91633.0,91632.0,0.35966436]
[1764713394933,0.15804895,91633.0,91632.0,0.1464]
[1764713396075,0.15804895,91633.0,91632.0,0.36466436]
[1764713401792,0.15804895,91633.0,91632.0,0.1464]
[1764713402216,0.15804895,91633.0,91632.0,0.36466436]
[1764713403613,0.15464895,91633.0,91632.0,0.36466436]
[1764713405079,0.12518895,91633.0,91632.0,0.36466436]
[1764713405574,0.15464895,91633.0,91632.0,0.36466436]
[1764713406132,0.15464895,91633.0,91632.0,0.1464]
[1764713406133,0.69591092,91633.0,91632.0,0.1464]
[1764713406652,0.71945647,91633.0,91632.0,0.1464]
[1764713409859,0.0843366,91627.0,91626.0,0.22919157]
[1764713410047,0.1074066,91627.0,91626.0,0.22919258]
[1764713410247,0.1368666,91627.0,91626.0,0.22919258]
[1764713415699,0.1368666,91627.0,91626.0,0.37559258]
[1764713417588,0.1368666,91627.0,91626.0,0.15731393]
[1764713417807,0.1368666,91627.0,91626.0,0.37559258]
[1764713418475,0.11505299,91627.0,91626.0,0.37559258]
[1764713420028,0.1368666,91627.0,91626.0,0.37559258]
[1764713421143,0.1074066,91627.0,91626.0,0.37559258]
[1764713421319,0.00861,91628.0,91627.0,0.21827627]
[1764713421320,0.03042361,91628.0,91627.0,0.21827627]
[1764713421772,0.03042361,91628.0,91627.0,0.36467627]
[1764713423704,0.00861,91628.0,91627.0,0.36467627]
[1764713423919,0.00884,91632.0,91627.0,0.36467627]
[1764713423920,0.02181361,91632.0,91631.0,0.21826674]
[1764713424178,0.03382361,91641.0,91640.0,0.2182453]
[1764713425231,0.02181361,91641.0,91640.0,0.2749853]
[1764713425425,0.07898534,91647.0,91646.0,0.21823101]
[1764713425607,0.10079895,91647.0,91646.0,0.36463101]
[1764713426444,0.03827596,91647.0,91646.0,0.36463101]
[1764713427025,0.03927596,91647.0,91646.0,0.36463101]
[1764713427240,0.01746235,91647.0,91646.0,0.36463101]
[1764713427649,0.001,91647.0,91646.0,0.36463101]
[1764713427860,0.001,91647.0,91646.0,0.42137101]
[1764713429252,0.02181361,91651.0,91650.0,0.21822149]
[1764713429454,0.02181361,91663.0,91660.0,0.21819768]
[1764713429814,0.01201,91664.0,91660.0,0.21819768]
[1764713430238,0.01201,91664.0,91654.0,0.01091059]
[1764713430239,0.03953235,91661.0,91654.0,0.01091059]
[1764713430417,0.03953235,91661.0,91649.0,0.36462387]
[1764713430418,0.02181361,91650.0,91649.0,0.36462387]
[1764713430653,0.00861,91653.0,91652.0,0.21821673]
[1764713430976,0.03042361,91653.0,91652.0,0.21821673]
[1764713432500,0.02181361,91653.0,91652.0,0.21821673]
[1764713432646,0.02181361,91669.0,91666.0,0.01090917]
[1764713432847,0.02181361,91670.0,91669.0,0.22908507]
[1764713434098,0.02181361,91670.0,91669.0,0.22920107]
[1764713434665,0.02281361,91670.0,91669.0,0.22920107]
[1764713434994,0.04588361,91670.0,91669.0,0.22920107]
[1764713435202,0.04688361,91670.0,91669.0,0.22920107]
[1764713436494,0.02381361,91670.0,91669.0,0.22920107]
[1764713437575,0.02281361,91670.0,91669.0,0.22920107]
[1764713437730,0.02181361,91670.0,91669.0,0.22920107]
[1764713442423,0.02181361,91670.0,91669.0,0.37560107]
[1764713445628,0.00884,91672.0,91671.0,0.2181715]
[1764713445828,0.03065361,91672.0,91671.0,0.2181715]
[1764713446033,0.05132361,91672.0,91671.0,0.2181715]
[1764713447150,0.03065361,91672.0,91671.0,0.2181715]
[1764713447373,0.03827596,91677.0,91676.0,0.2181596]
[1764713447560,0.03827596,91677.0,91676.0,0.3645596]
[1764713447934,0.03580934,91677.0,91676.0,0.3645596]
[1764713449390,0.03680934,91677.0,91676.0,0.3645596]
[1764713449589,0.03580934,91677.0,91676.0,0.3645596]
[1764713449944,0.03580934,91677.0,91676.0,0.3655596]
[1764713451941,0.00861,91684.0,91678.0,0.22906258]
[1764713452100,0.02181361,91684.0,91683.0,0.22905008]
[1764713456297,0.02181361,91682.0,91681.0,0.22905406]
[1764713456481,0.02181361,91682.0,91681.0,0.37545406]
[1764713460563,0.00861,91688.0,91687.0,0.21813343]
[1764713460766,0.03042361,91688.0,91687.0,0.21813343]
[1764713460962,0.03382361,91692.0,91691.0,0.21812391]
[1764713461995,0.05425616,91706.0,91699.0,0.21810263]
[1764713462269,0.02181361,91700.0,91699.0,0.21810263]
[1764713462467,0.03042361,91707.0,91706.0,0.21808823]
[1764713462611,0.03042361,91707.0,91706.0,0.36448823]
[1764713463211,0.03081207,91707.0,91706.0,0.36448823]
[1764713464207,0.02220207,91707.0,91706.0,0.36448823]
[1764713465425,0.02220207,91707.0,91706.0,0.36548823]
[1764713469941,0.00038846,91707.0,91706.0,0.36548823]
[1764713470141,0.02220207,91707.0,91706.0,0.36548823]
[1764713483637,0.02220207,91707.0,91706.0,0.36548823]
[1764713486774,0.06394207,91707.0,91706.0,0.1474]
[1764713487781,0.06394207,91707.0,91706.0,0.36548823]
[1764713488062,0.04166207,91707.0,91706.0,0.36515016]
[1764713488957,0.06394207,91707.0,91706.0,0.36515016]
[1764713489769,0.04166207,91707.0,91706.0,0.36515016]
[1764713492328,0.02220207,91707.0,91706.0,0.36515016]
[1764713493555,0.02220207,91707.0,91706.0,0.41750016]
[1764713493919,0.02220207,91707.0,91706.0,0.38604016]
[1764713494510,0.02220207,91707.0,91706.0,0.41335016]
[1764713494713,0.00038846,91707.0,91706.0,0.41335016]
[1764713495303,0.0002,91720.0,91719.0,0.21805732]
[1764713495503,0.0002,91720.0,91719.0,0.25221332]
[1764713495707,0.0002,91720.0,91719.0,0.27952332]
[1764713498891,0.0002,91720.0,91719.0,0.42519679]
[1764713506414,0.0002,91730.0,91729.0,0.21803355]
[1764713506630,0.0002,91730.0,91729.0,0.43660037]
[1764713506829,0.0002,91730.0,91729.0,0.76750702]
[1764713509029,0.0002,91730.0,91729.0,0.76850702]
[1764713509234,0.0002,91730.0,91729.0,1.01680702]
[1764713509439,0.0002,91730.0,91729.0,1.03326937]
[1764713510151,0.0002,91730.0,91729.0,1.43226937]
[1764713510672,0.01646235,91763.0,91760.0,0.01089799]
[1764713510854,0.01646235,91763.0,91762.0,0.21795514]
[1764713512037,0.00732,91771.0,91767.0,0.01089716]
[1764713512239,0.02181361,91772.0,91769.0,0.21793851]
[1764713512391,0.02181361,91772.0,91769.0,0.36321198]
[1764713512759,0.03794,91770.0,91769.0,0.14527347]
[1764713512998,0.05975361,91770.0,91769.0,0.14527347]
[1764713513205,0.02201361,91770.0,91769.0,0.14527347]
[1764713513411,0.02201361,91770.0,91769.0,0.36321198]
[1764713514748,0.02201361,91770.0,91769.0,0.42697198]
[1764713516790,0.02201361,91770.0,91769.0,0.28169851]
[1764713519170,0.0002,91770.0,91769.0,0.28169851]
[1764713520078,0.0002,91770.0,91769.0,0.42697198]
[1764713520412,0.0002,91770.0,91769.0,0.44343433]
[1764713520611,0.0002,91770.0,91769.0,0.84343433]
[1764713521454,0.0002,91770.0,91769.0,0.82797198]
[1764713523558,0.0002,91770.0,91769.0,0.82897198]
[1764713525636,0.02181361,91778.0,91777.0,0.01089597]
[1764713525751,0.02181361,91778.0,91777.0,0.26784744]
[1764713525954,0.02181361,91778.0,91777.0,0.29152549]
[1764713527201,0.0002,91780.0,91779.0,0.21791477]
[1764713527410,0.0002,91780.0,91779.0,0.38083824]
[1764713527569,0.0002,91780.0,91779.0,0.40845824]
[1764713529441,0.0012,91780.0,91779.0,0.40845824]
[1764713530839,0.02301361,91780.0,91779.0,0.14507347]
[1764713531036,0.02301361,91780.0,91779.0,0.38083824]
[1764713531237,0.02301361,91780.0,91779.0,0.36298824]
[1764713531872,0.02301361,91780.0,91779.0,0.36310424]
[1764713537257,0.0012,91780.0,91779.0,0.40857424]
[1764713539862,0.0012,91780.0,91779.0,0.38095424]
[1764713540067,0.02301361,91780.0,91779.0,0.38095424]
[1764713540274,0.02301361,91780.0,91779.0,0.40857424]
[1764713540476,0.02301361,91780.0,91779.0,0.38095424]
[1764713541417,0.02301361,91780.0,91779.0,0.36310424]
[1764713542914,0.273166,91780.0,91779.0,0.14518947]
[1764713543159,0.31312481,91780.0,91779.0,0.14518947]
[1764713543371,0.28962835,91780.0,91779.0,0.14518947]
[1764713543579,0.31312481,91780.0,91779.0,0.14518947]
[1764713543859,0.31212481,91780.0,91779.0,0.14518947]
[1764713544635,0.09421242,91780.0,91779.0,0.14518947]
[1764713544836,0.07071596,91780.0,91779.0,0.14518947]
[1764713545114,0.29162835,91780.0,91779.0,0.14518947]
[1764713545491,0.09721242,91780.0,91779.0,0.14518947]
[1764713545717,0.29162835,91780.0,91779.0,0.14518947]
[1764713545852,0.31512481,91780.0,91779.0,0.14518947]
[1764713546401,0.31512481,91780.0,91779.0,0.000116]
[1764713550197,0.09721242,91780.0,91779.0,0.000116]
[1764713550403,0.07371596,91780.0,91779.0,0.000116]
[1764713551021,0.29162835,91780.0,91779.0,0.000116]
[1764713551365,0.31512481,91780.0,91779.0,0.000116]
[1764713558387,0.31512481,91780.0,91779.0,0.14518947]
[1764713560236,0.7006478,91780.0,91779.0,0.14518947]
[1764713560557,0.40409242,91780.0,91779.0,0.14518947]
[1764713560707,0.41729242,91780.0,91779.0,0.14518947]
[1764713560890,0.09429242,91780.0,91779.0,0.14518947]
[1764713561097,0.07079596,91780.0,91779.0,0.14518947]
[1764713561280,0.06779596,91780.0,91779.0,0.14518947]
[1764713561482,0.28670835,91780.0,91779.0,0.14518947]
[1764713561760,0.31320481,91780.0,91779.0,0.14518947]
[1764713562178,0.31220481,91780.0,91779.0,0.14518947]
[1764713563474,0.09429242,91780.0,91779.0,0.14518947]
[1764713563700,0.07079596,91780.0,91779.0,0.14518947]
[1764713563997,0.07079596,91780.0,91779.0,0.36310424]
[1764713564126,0.28870835,91780.0,91779.0,0.14518947]
[1764713565074,0.28570835,91780.0,91779.0,0.14518947]
[1764713565283,0.02401361,91780.0,91779.0,0.36310424]
[1764713565705,0.0022,91780.0,91779.0,0.26067077]
[1764713566262,0.0022,91780.0,91779.0,0.67713312]
[1764713567186,0.0002,91780.0,91779.0,0.67713312]
[1764713567757,0.0002,91780.0,91779.0,0.67813312]
[1764713567978,0.0002,91780.0,91779.0,0.68013312]
[1764713568257,0.0002,91780.0,91779.0,0.66367077]
[1764713568452,0.0002,91780.0,91779.0,0.98667077]
[1764713570046,1e-08,91780.0,91779.0,1.13174424]
[1764713570219,0.0002,91800.0,91799.0,0.21786729]
[1764713570432,0.0002,91800.0,91799.0,0.58856729]
[1764713570752,0.0002,91820.0,91819.0,0.21781984]
[1764713570957,0.0002,91820.0,91819.0,0.29120984]
[1764713571666,0.0002,91820.0,91819.0,0.27396984]
[1764713571888,0.02240279,91820.0,91819.0,0.29120984]
[1764713572233,0.02240279,91820.0,91819.0,0.29220984]
[1764713573497,0.00058918,91820.0,91819.0,0.29120984]
[1764713574105,0.00058918,91820.0,91819.0,0.29220984]
[1764713574307,0.00058918,91820.0,91819.0,0.69220984]
[1764713575525,0.00058918,91820.0,91819.0,0.69120984]
[1764713575731,0.00058918,91820.0,91819.0,0.69220984]
[1764713576841,0.00058918,91820.0,91819.0,0.69420984]
[1764713577822,0.00058918,91820.0,91819.0,0.70509668]
[1764713578987,0.00588,91834.0,91833.0,0.14448429]
[1764713579173,0.02769361,91834.0,91833.0,0.37962692]
[1764713580177,0.21774931,91849.0,91833.0,0.37962692]
[1764713580178,0.02181361,91852.0,91843.0,0.01088814]
[1764713580412,0.02181361,91855.0,91854.0,0.21773526]
[1764713580568,0.00761409,91856.0,91854.0,0.21773526]
[1764713580569,0.00761409,91856.0,91854.0,0.23468526]
[1764713580770,0.00761409,91856.0,91855.0,0.04264]
[1764713581003,0.0294277,91856.0,91855.0,0.05988]
[1764713582113,0.00761409,91856.0,91855.0,0.06088]
[1764713586227,0.00761409,91856.0,91855.0,0.80565344]
[1764713586433,0.00761409,91856.0,91855.0,0.78388]
[1764713587348,0.00761409,91856.0,91855.0,0.78288]
[1764713587550,0.00761409,91856.0,91855.0,0.76564]
[1764713587767,0.00761409,91856.0,91855.0,0.78388]
[1764713588116,0.00761409,91856.0,91855.0,0.78488]
[1764713588315,0.00761409,91856.0,91855.0,0.80134235]